bitfinex-derivatives/quotes_ETHF0:USTF0_20250616
["timestamp","ask_amount","ask_price","bid_price","bid_amount"]
[1750051570867,3.01407889,2589.1,2588.4,3.2078]
[1750051571070,3.01407889,2589.1,2588.2,5.0]
[1750051571071,13.593,2592.3,2590.3,3.2078]
[1750051571281,0.06429098,2594.0,2589.0,50.93730878]
[1750051571282,3.2078,2593.2,2592.2,3.2078]
[1750051571473,3.2078,2593.2,2592.5,3.2078]
[1750051571676,3.2078,2593.4,2592.5,3.2078]
[1750051571879,3.2078,2595.3,2593.3,8.27645439]
[1750051572071,3.2078,2595.3,2594.5,3.2078]
[1750051572272,3.2078,2594.8,2594.2,3.2078]
[1750051572476,1.68581195,2594.2,2594.0,0.0057809]
[1750051572672,1.68581195,2594.2,2594.0,9e-07]
[1750051572872,1.68581195,2594.2,2594.1,3.2078]
[1750051573279,0.77056,2595.1,2594.1,3.2078]
[1750051573482,5.06865439,2594.7,2594.3,3.2078]
[1750051573689,0.00574205,2594.8,2594.5,3.2078]
[1750051573995,3.2078,2594.8,2594.2,3.2078]
[1750051574281,3.2078,2596.1,2594.7,3.2078]
[1750051574579,5.06865439,2595.0,2590.9,1.92945]
[1750051574782,5.06865439,2596.0,2593.5,3.2078]
[1750051574783,5.06865439,2594.4,2593.5,3.2078]
[1750051574976,5.06865439,2594.4,2593.8,3.2078]
[1750051575175,8.27645439,2593.9,2591.9,3.2078]
[1750051575381,3.2078,2593.0,2592.3,3.2078]
[1750051575580,3.2078,2593.3,2592.2,3.2078]
[1750051575778,2.55451,2594.3,2591.9,3.2078]
[1750051575779,3.2078,2592.5,2591.9,3.2078]
[1750051576184,3.2078,2592.2,2590.9,3.2078]
[1750051576382,3.2078,2591.8,2590.9,3.2078]
[1750051576585,12.984,2592.7,2590.9,3.2078]
[1750051576586,3.97937,2591.7,2590.9,3.2078]
[1750051576884,3.2078,2591.2,2590.6,3.2078]
[1750051577382,3.2078,2590.9,2590.6,0.0057809]
[1750051577583,0.77186,2590.7,2590.6,0.0057809]
[1750051577776,3.2078,2590.9,2588.8,23.365]
[1750051577777,8.2078,2590.9,2589.6,3.2078]
[1750051577984,3.2078,2591.0,2589.9,3.2078]
[1750051578179,3.2078,2590.5,2589.6,3.2078]
[1750051578484,3.2078,2590.2,2589.7,0.07722902]
[1750051578680,3.2078,2590.6,2589.7,0.08300992]
[1750051578885,3.2078,2590.5,2589.7,0.08300992]
[1750051579283,3.2078,2590.2,2589.7,0.08300992]
[1750051579686,4.04699406,2590.9,2589.9,3.2078]
[1750051579884,3.2078,2590.3,2590.0,0.07722007]
[1750051580389,3.2078,2590.2,2590.0,0.07722007]
[1750051580585,3.2078,2590.2,2590.1,0.07721709]
[1750051580786,3.9798,2590.2,2590.1,0.07721709]
[1750051580993,8.2078,2590.2,2589.2,3.2078]
[1750051581194,3.2078,2589.8,2589.3,0.07724095]
[1750051581495,3.2078,2589.8,2589.3,0.08303313]
[1750051581682,3.21359218,2589.8,2589.3,0.08303313]
[1750051581881,3.98572218,2589.8,2589.3,0.08303313]
[1750051582090,0.6648,2589.7,2589.3,0.08303313]
[1750051583287,0.7722,2589.6,2589.3,0.08303313]
[1750051583493,0.6648,2589.7,2589.3,0.08303313]
[1750051583692,0.77218,2589.6,2589.3,0.08303313]
[1750051583895,0.77221,2589.5,2589.3,0.08303313]
[1750051584090,0.6648,2589.7,2589.3,0.08303313]
[1750051584688,0.6648,2589.7,2589.3,0.00579218]
[1750051584895,1.43697,2589.7,2589.3,0.00579218]
[1750051585089,0.6648,2589.7,2589.3,0.00579218]
[1750051585284,3.8726,2589.7,2589.3,0.00579218]
[1750051585482,0.77237,2589.0,2588.5,3.2078]
[1750051585686,0.77237,2589.0,2587.6,6.91145861]
[1750051585687,3.2078,2589.2,2588.1,3.2078]
[1750051585890,0.77227,2589.3,2588.5,3.2078]
[1750051586097,3.2078,2589.5,2588.8,3.2078]
[1750051586487,3.2078,2589.5,2588.9,0.00579218]
[1750051586993,3.2078,2589.5,2589.4,0.77224]
[1750051587296,3.2078,2589.5,2588.9,0.00579218]
[1750051587493,3.2078,2589.5,2589.2,0.77228]
[1750051587794,0.06737406,2590.9,2590.1,0.77201]
[1750051587993,3.28499921,2590.7,2590.1,3.2078]
[1750051588200,3.2078,2590.3,2589.6,3.2078]
[1750051588400,3.2078,2590.6,2589.9,3.2078]
[1750051588594,3.2078,2590.6,2589.2,40.8]
[1750051588595,0.77203,2590.2,2589.8,0.77212]
[1750051588794,0.77206,2590.1,2589.7,0.00579218]
[1750051589006,3.21359218,2590.3,2589.7,0.00579218]
[1750051589201,0.00579218,2590.3,2589.9,3.2078]
[1750051589500,0.00579218,2590.3,2590.0,0.77204]
[1750051589991,0.00579218,2590.3,2589.9,3.2078]
[1750051590200,0.71209218,2590.3,2590.2,3.2078]
[1750051590497,3.2078,2592.0,2590.2,16.1868]
[1750051590794,3.2078,2591.8,2590.8,3.2078]
[1750051590994,3.97946,2591.4,2590.6,40.8]
[1750051591296,0.07718133,2591.3,2590.7,0.60158695]
[1750051591492,1.38637351,2591.3,2591.0,0.77175]
[1750051591693,0.06737406,2590.9,2590.7,0.00579218]
[1750051591996,1.38059623,2590.8,2590.7,0.77765218]
[1750051592701,0.07719623,2590.8,2590.7,5.00579218]
[1750051592894,3.0876,2591.0,2590.7,25.46814614]
[1750051593090,0.77149,2592.0,2590.9,3.2078]
[1750051593393,0.5631,2592.1,2590.8,0.0674]
[1750051593394,3.7709,2592.1,2591.1,3.2078]
[1750051593593,3.2078,2591.8,2591.1,3.97952]
[1750051593900,0.00579218,2591.7,2591.3,0.77166]
[1750051594199,1.92833,2592.5,2591.3,0.77166]
[1750051594200,3.2078,2593.3,2591.6,3.2078]
[1750051594403,3.2078,2594.4,2592.8,3.2078]
[1750051594591,3.97878,2593.7,2593.1,3.97893]
[1750051594792,8.83796861,2595.0,2593.4,3.2078]
[1750051594793,0.77082,2594.2,2593.4,3.2078]
[1750051594992,0.00578464,2594.1,2593.7,3.2078]
[1750051595293,0.00578464,2594.1,2593.5,0.00579218]
[1750051595903,0.77099,2593.6,2593.5,0.00579218]
[1750051596099,0.00578464,2594.1,2593.5,0.00579218]
[1750051596399,0.3792,2594.0,2593.8,3.2078]
[1750051597104,0.3792,2594.0,2593.5,1.35929218]
[1750051597105,0.77092,2593.9,2593.5,0.00579218]
[1750051597401,0.77099,2593.6,2593.5,0.00579218]
[1750051597599,1.2927,2593.8,2593.5,0.58116795]
[1750051597805,1.2927,2593.8,2593.6,3.2078]
[1750051598099,1.2927,2593.8,2593.5,0.00579218]
[1750051598100,0.77099,2593.6,2593.5,0.00579218]
[1750051599003,0.3792,2594.0,2593.5,5.00579218]
[1750051599302,0.3792,2594.0,2593.9,3.2078]
[1750051599605,0.77087,2594.0,2593.9,3.2078]
[1750051600197,0.57338464,2594.1,2593.9,8.2078]
[1750051600405,0.57338464,2594.1,2594.0,0.77087]
[1750051600608,0.57338464,2594.1,2593.9,8.2078]
[1750051600805,0.00578464,2594.1,2593.9,3.2078]
[1750051601005,0.77665464,2594.1,2593.9,3.2078]
[1750051601198,0.00578464,2594.1,2593.9,3.2078]
[1750051601403,0.00578464,2594.1,2593.9,8.2078]
[1750051601599,0.00578464,2594.1,2594.0,0.77087]
[1750051601801,1.2415,2594.7,2593.9,44.0078]
[1750051602105,0.77073,2594.5,2594.4,3.2078]
[1750051603407,3.2078,2596.4,2594.4,21.1718]
[1750051603703,1.2404,2596.3,2595.7,3.2078]
[1750051603905,1.2404,2596.3,2596.0,3.2078]
[1750051603906,0.77025,2596.1,2596.0,3.2078]
[1750051604299,0.77046,2595.4,2595.3,3.2078]
[1750051604600,1.92634,2595.2,2594.3,3.2078]
[1750051604801,5.13414,2595.2,2594.3,3.2078]
[1750051605102,0.77075,2594.4,2594.3,3.2078]
[1750051605406,1.2404,2595.1,2594.3,3.2078]
[1750051605607,0.77075,2594.4,2594.3,3.2078]
[1750051606400,0.77081,2594.2,2594.1,0.0057809]
[1750051606810,0.6732,2594.9,2594.1,0.0057809]
[1750051607106,1.92621,2595.4,2594.2,3.2078]
[1750051607311,0.77067,2594.7,2594.6,3.2078]
[1750051607610,2.54909,2595.7,2594.6,3.2078]
[1750051607611,1.92535,2596.5,2594.6,23.01525861]
[1750051607799,1.2396,2596.1,2595.2,3.2078]
[1750051608203,3.16525,2596.1,2595.2,3.2078]
[1750051608403,0.77048,2595.4,2595.2,3.2078]
[1750051608606,1.2396,2595.3,2595.2,3.2078]
[1750051609307,2.01009,2595.3,2595.2,3.2078]
[1750051609511,0.77054,2595.2,2595.0,3.2078]
[1750051609705,0.77055,2595.1,2595.0,3.2078]
[1750051609914,1.3326,2595.1,2594.7,3.2078]
[1750051610209,0.77064,2594.8,2594.7,3.2078]
[1750051610602,3.2078,2594.8,2594.2,3.2078]
[1750051610806,0.07311738,2595.6,2594.7,3.2078]
[1750051611005,0.7705,2595.3,2595.1,3.10242551]
[1750051611205,2.10312,2595.2,2595.1,3.10242551]
[1750051611524,0.77066,2594.8,2594.5,3.97852]
[1750051611715,5.0,2595.3,2594.5,3.97852]
[1750051611716,2.11608,2594.7,2594.5,3.2078]
[1750051612012,1.3454,2594.7,2594.5,3.2078]
[1750051612211,2.11608,2594.7,2594.5,3.2078]
[1750051612610,0.7707,2594.6,2594.5,3.2078]
[1750051613111,1.3454,2594.7,2594.1,0.0057809]
[1750051613310,0.77081,2594.2,2594.1,0.0057809]
[1750051613911,0.77081,2594.2,2594.0,3.2078]
[1750051613912,0.77084,2594.1,2594.0,3.2078]
[1750051614209,1.3454,2594.1,2594.0,3.2078]
[1750051614603,2.11624,2594.1,2594.0,3.2078]
[1750051615012,0.77097,2593.7,2593.3,3.97887]
[1750051615219,2.1157,2593.6,2593.3,3.2078]
[1750051615517,1.3447,2593.6,2593.3,3.2078]
[1750051615916,1.3447,2593.6,2593.5,0.77102]
[1750051616314,3.2078,2593.7,2593.6,0.77099]
[1750051617008,3.2078,2593.7,2593.4,0.77103]
[1750051617310,3.2078,2593.7,2593.3,3.2135809]
[1750051617311,1.3447,2593.6,2593.3,3.2135809]
[1750051617517,1.3447,2593.6,2593.5,0.77102]
[1750051618912,3.2078,2594.0,2593.5,5.0]
[1750051619217,0.06737406,2595.6,2593.5,5.0]
[1750051619218,3.2078,2595.3,2594.7,0.77064]
[1750051619517,0.77073,2594.5,2594.2,0.7708]
[1750051619713,1.3352,2594.4,2594.2,0.7708]
[1750051619904,1.3352,2594.4,2594.1,3.2078]
[1750051620104,1.3352,2594.4,2594.1,0.77084]
[1750051620310,2.10597,2594.4,2594.1,0.77082]
[1750051620511,2.10597,2594.4,2594.1,0.77083]
[1750051620912,3.8605,2595.5,2594.3,3.2078]
[1750051621115,3.8605,2595.5,2594.2,6.91145861]
[1750051621116,3.8605,2595.5,2594.7,6.91145861]
[1750051621308,1.2982,2595.4,2595.2,0.7705]
[1750051621514,2.06866,2595.4,2595.1,0.77054]
[1750051621712,1.2982,2595.4,2595.2,0.77051]
[1750051621913,0.77049,2595.3,2595.1,0.77053]
[1750051622218,1.2982,2595.2,2595.1,0.77053]
[1750051622419,0.568,2595.4,2595.3,0.66558058]
[1750051622612,1.33848,2595.4,2594.9,3.2078]
[1750051622914,3.2078,2595.2,2595.0,0.33637789]
[1750051623228,0.77062,2594.9,2594.6,0.77068]
[1750051623522,1.2982,2594.8,2594.4,1.11332465]
[1750051623823,4.506,2594.8,2594.3,3.2078]
[1750051624418,0.568,2595.4,2594.3,3.2078]
[1750051624625,0.568,2595.4,2595.3,3.97829]
[1750051624821,0.568,2595.4,2595.3,3.2078]
[1750051625118,0.07311738,2595.6,2595.3,3.97828]
[1750051625319,0.00574332,2595.6,2595.3,3.97828]
[1750051625517,0.00574332,2595.6,2595.4,1.10778901]
[1750051625722,0.00574332,2595.6,2595.5,0.33732627]
[1750051625917,0.00574332,2595.6,2595.5,1.10773225]
[1750051626117,5.13314,2596.5,2595.5,0.33727687]
[1750051626320,6.4156,2596.5,2595.9,3.2078]
[1750051626517,0.77026,2596.1,2595.9,3.2078]
[1750051626712,2.13472,2596.0,2595.9,3.2078]
[1750051627118,5.26548,2596.0,2595.9,3.2078]
[1750051627318,5.34252,2596.0,2595.9,3.2078]
[1750051628419,1e-08,2596.2,2596.0,0.77025]
[1750051628619,1e-08,2596.2,2596.1,0.77025]
[1750051628818,1e-08,2596.2,2596.1,0.33707275]
[1750051629017,0.24563312,2597.1,2596.1,5.33705116]
[1750051629217,0.77004,2596.8,2596.7,3.2078]
[1750051629625,0.7701,2596.6,2596.5,0.0057809]
[1750051629931,3.9779,2596.6,2596.5,9e-07]
[1750051630224,0.77025,2596.1,2596.0,3.2078]
[1750051630623,3.97805,2596.1,2596.0,3.2078]
[1750051631530,0.77031,2595.9,2595.8,0.0057809]
[1750051631924,1.9313309,2596.3,2595.8,0.0057809]
[1750051631925,0.0057809,2596.3,2595.8,0.0057809]
[1750051632129,0.77025,2596.1,2596.0,3.2078]
[1750051632325,3.2135809,2596.3,2596.0,3.2078]
[1750051632533,0.24563312,2597.1,2596.4,0.77014]
[1750051632824,0.77004,2596.8,2596.7,3.2078]
[1750051633431,3.97784,2596.8,2596.7,3.2078]
[1750051633728,3.97784,2596.8,2596.1,1.3444]
[1750051633729,0.77013,2596.5,2596.4,3.2078]
[1750051634038,0.77022,2596.2,2596.1,3.2078]
[1750051635331,3.97802,2596.2,2596.1,3.2078]
[1750051637227,0.77031,2595.9,2595.8,0.0057809]
[1750051637627,2.17053312,2597.1,2595.8,5.0057809]
[1750051637833,0.24563312,2597.1,2596.7,3.2078]
[1750051638030,1.57183312,2597.1,2596.7,3.2078]
[1750051638337,1.01558312,2597.1,2597.0,3.2078]
[1750051638534,2.34178312,2597.1,2597.0,3.2078]
[1750051639232,0.24563312,2597.1,2597.0,3.2078]
[1750051639837,1.01558312,2597.1,2597.0,3.2078]
[1750051640133,0.24563312,2597.1,2597.0,3.2078]
[1750051640833,0.24563312,2597.1,2597.0,3.97778]
[1750051641038,15.3498,2597.9,2597.0,8.2078]
[1750051641039,0.76973,2597.9,2597.0,8.2078]
[1750051641229,0.76973,2597.9,2597.8,3.2078]
[1750051641429,3.2078,2597.9,2597.2,0.0057809]
[1750051641630,3.2078,2597.9,2597.2,3.2135809]
[1750051641934,1.92424,2598.0,2597.2,3.2135809]
[1750051642134,1.92423,2598.0,2597.2,3.2135809]
[1750051642439,0.76989,2597.3,2597.2,3.2135809]
[1750051642733,15.3498,2597.5,2597.2,0.59937377]
[1750051642937,0.76989,2597.3,2597.2,0.59937377]
[1750051643133,2.48187503,2599.0,2597.3,1.92472]
[1750051643334,3.2078,2598.7,2598.1,3.2078]
[1750051643537,3.2078,2598.7,2598.1,3.2135809]
[1750051643842,0.76963,2598.2,2598.1,3.2135809]
[1750051644035,0.76963,2598.2,2598.1,0.56544227]
[1750051644238,3.97741,2598.3,2598.1,0.0057809]
[1750051644540,0.6563,2599.1,2598.1,3.2135809]
[1750051644541,0.76963,2598.2,2598.1,3.2135809]
[1750051644734,0.76963,2598.2,2598.1,0.54098684]
[1750051644934,0.76963,2598.2,2598.1,0.0057809]
[1750051645330,0.76963,2598.2,2598.1,0.54100767]
[1750051645641,0.76978,2597.7,2597.6,3.2078]
[1750051646641,0.76984,2597.5,2597.4,0.0057809]
[1750051647433,17.90884,2597.5,2597.2,0.59359287]
[1750051647639,0.77019,2596.3,2596.2,3.2078]
[1750051648944,0.77025,2596.1,2596.0,0.0057809]
[1750051649740,3.2078,2596.4,2596.0,0.0057809]
[1750051650038,0.77025,2596.1,2596.0,0.0057809]
[1750051651545,0.77023,2596.2,2596.0,0.0057809]
[1750051651945,3.2078,2596.4,2596.0,0.0057809]
[1750051652250,0.77022,2596.2,2596.0,3.2135809]
[1750051652444,0.77025,2596.1,2596.0,3.2135809]
[1750051652636,0.77025,2596.1,2596.0,0.0057809]
[1750051654443,5.77025,2596.1,2596.0,0.0057809]
[1750051654645,0.77043,2595.5,2595.4,3.2078]
[1750051657057,0.77049,2595.3,2595.2,0.0057809]
[1750051657749,0.77049,2595.3,2594.4,14.24576444]
[1750051657750,8.2078,2595.3,2594.3,4.33596444]
[1750051657951,0.7707,2594.6,2594.3,3.2078]
[1750051658253,0.7707,2594.6,2594.4,0.77075]
[1750051658456,0.77068,2594.7,2594.4,0.77075]
[1750051658649,3.2078,2594.9,2594.3,3.2078]
[1750051658849,0.77074,2594.5,2594.3,3.2135809]
[1750051659451,5.1401709,2594.9,2594.3,3.2135809]
[1750051659849,0.77074,2594.5,2594.3,3.2135809]
[1750051660353,0.77075,2594.5,2594.3,3.2135809]
[1750051660549,3.2135809,2594.9,2594.3,3.2135809]
[1750051660750,0.7707,2594.6,2594.4,1.3487]
[1750051660955,0.77073,2594.5,2594.3,3.9843509]
[1750051661156,1.2428,2594.8,2594.3,3.2135809]
[1750051661453,0.77075,2594.5,2594.3,3.2135809]
[1750051661656,0.77075,2594.5,2594.3,3.9843509]
[1750051661854,0.77076,2594.4,2594.3,0.0057809]
[1750051662953,1.2428,2594.8,2594.3,3.2135809]
[1750051663162,0.77071,2594.6,2594.4,0.77076]
[1750051663550,0.77071,2594.6,2594.4,0.77074]
[1750051663849,0.77067,2594.7,2594.5,0.77072]
[1750051664064,0.77068,2594.7,2594.4,0.77074]
[1750051664347,0.77068,2594.7,2594.4,0.77073]
[1750051664661,2.01346,2594.8,2594.3,3.2135809]
[1750051664956,0.77067,2594.7,2594.5,0.77071]
[1750051665363,0.0057809,2594.9,2594.3,3.2135809]
[1750051665552,0.0057809,2594.9,2594.8,0.77064]
[1750051666455,0.0057809,2594.9,2594.6,0.77067]
[1750051666456,3.9842109,2594.9,2594.6,0.77067]
[1750051666650,0.0057809,2594.9,2594.8,0.77064]
[1750051666852,0.0057809,2594.9,2594.7,0.77064]
[1750051667051,0.0057809,2594.9,2594.6,3.2078]
[1750051667256,5.2955909,2594.9,2594.6,0.77068]
[1750051667550,4.5249809,2594.9,2594.3,3.2135809]
[1750051667751,4.5249809,2594.9,2594.5,0.77072]
[1750051667953,0.77064,2594.8,2594.6,0.7707]
[1750051668162,2.08207,2594.7,2594.5,0.7707]
[1750051668357,0.7707,2594.6,2594.5,0.7707]
[1750051668565,0.7707,2594.6,2594.4,0.77074]
[1750051668859,1.3114,2594.7,2594.3,0.0057809]
[1750051669062,1.3114,2594.7,2594.6,0.7707]
[1750051669264,2.08207,2594.7,2594.5,0.77071]
[1750051669462,0.7707,2594.6,2594.5,0.77071]
[1750051669659,0.7707,2594.6,2594.4,0.77074]
[1750051669865,1.3114,2594.7,2594.3,3.2135809]
[1750051670062,1.3114,2594.7,2594.5,0.77072]
[1750051670063,0.77071,2594.6,2594.5,0.77072]
[1750051670257,0.77071,2594.6,2594.3,3.2135809]
[1750051670258,0.77074,2594.5,2594.4,0.77075]
[1750051670659,0.77074,2594.5,2594.3,0.7765509]
[1750051670859,1.3114,2594.7,2594.4,0.77073]
[1750051671164,1.3114,2594.7,2594.3,0.7765409]
[1750051671369,0.77075,2594.5,2594.3,0.7765409]
[1750051671565,0.77076,2594.4,2594.3,0.7765409]
[1750051671972,0.77074,2594.5,2594.4,0.77075]
[1750051672171,0.77074,2594.5,2594.3,0.0057809]
[1750051672375,1.3114,2594.7,2594.4,0.77074]
[1750051672670,1.3114,2594.7,2594.4,0.77073]
[1750051672878,1.3114,2594.7,2594.3,3.2135809]
[1750051673074,0.77075,2594.5,2594.4,0.77074]
[1750051673277,1.3114,2594.7,2594.3,0.0057809]
[1750051673573,0.77073,2594.5,2594.4,0.77073]
[1750051673977,0.77076,2594.4,2594.3,0.0057809]
[1750051674674,0.07315496,2594.9,2594.8,0.77064]
[1750051674865,0.07315496,2594.9,2594.3,0.0057809]
[1750051675070,0.77067,2594.7,2594.5,0.77071]
[1750051675373,4.5451,2594.8,2594.4,0.77074]
[1750051675574,0.77073,2594.5,2594.3,0.7765409]
[1750051675772,1.3373,2594.4,2594.3,0.7765409]
[1750051677279,3.2078,2594.8,2594.3,0.0057809]
[1750051677572,0.77068,2594.7,2594.6,0.77068]
[1750051677780,2.10268,2594.7,2594.3,0.0057809]
[1750051677975,2.10267,2594.7,2594.6,0.7707]
[1750051678176,1.332,2594.7,2594.6,0.7707]
[1750051678378,1.332,2594.7,2594.5,0.77071]
[1750051678576,1.332,2594.7,2594.6,0.7707]
[1750051678882,0.77065,2594.8,2594.7,0.77065]
[1750051679070,0.84378496,2594.9,2594.4,4.5418]
[1750051679272,0.07315496,2594.9,2594.8,0.77064]
[1750051679781,0.84377496,2594.9,2594.4,4.5418]
[1750051680084,0.07315496,2594.9,2594.4,4.5418]
[1750051680281,1.2651,2594.8,2594.7,0.77067]
[1750051681576,1.2651,2594.8,2594.7,3.97847]
[1750051682279,2.03574,2594.8,2594.7,3.97847]
[1750051682580,1.2651,2594.8,2594.7,3.97847]
[1750051683376,8.2078,2594.8,2594.4,1.13260013]
[1750051683579,1.3319,2594.7,2594.3,0.0057809]
[1750051683774,1.3319,2594.7,2594.3,3.2135809]
[1750051683971,2.10257,2594.7,2594.4,0.77075]
[1750051684287,0.7707,2594.6,2594.4,0.77074]
[1750051684583,0.77075,2594.4,2594.3,0.0057809]
[1750051684777,3.97855,2594.4,2594.3,0.0057809]
[1750051684976,8.97855,2594.4,2594.3,0.0057809]
[1750051685378,0.77093,2593.8,2593.7,1.13260013]
[1750051685578,3.2078,2594.0,2593.7,1.13260013]
[1750051685779,0.77096,2593.7,2593.6,1.13260013]
[1750051685981,0.77102,2593.5,2593.4,1.13260013]
[1750051686182,1.3011,2593.6,2593.4,1.13260013]
[1750051686478,0.77108,2593.3,2593.2,0.0057809]
[1750051686683,0.0057809,2593.5,2593.2,0.0057809]
[1750051686879,0.77108,2593.3,2593.2,0.0057809]
[1750051687176,0.0057809,2593.5,2593.2,0.0057809]
[1750051687383,1.3011,2593.3,2593.2,0.0057809]
[1750051688383,1.3011,2593.3,2593.2,0.7768909]
[1750051688886,1.3011,2593.3,2593.2,0.0057809]
[1750051689078,0.7768209,2593.5,2593.2,0.7768909]
[1750051689388,1.2984,2593.4,2593.2,0.7768809]
[1750051689781,4.5062,2593.4,2593.2,0.0057809]
[1750051689985,4.5062,2593.4,2593.2,0.7768909]
[1750051690380,4.5062,2593.4,2593.3,0.77108]
[1750051690582,4.5062,2593.4,2593.2,0.0057809]
[1750051690890,5.27726,2593.4,2593.2,0.0057809]
[1750051691080,4.5062,2593.4,2593.2,0.0057809]
[1750051691483,0.0057809,2593.5,2593.4,0.77105]
[1750051691682,0.0057809,2593.5,2593.4,3.97885]
[1750051691882,0.0057809,2593.5,2593.2,0.0057809]
[1750051692079,3.2078,2593.3,2593.2,0.0057809]
[1750051692280,0.0057809,2593.5,2593.2,0.0057809]
[1750051692583,0.77108,2593.3,2593.2,0.0057809]
[1750051692979,0.77105,2593.4,2593.2,0.0057809]
[1750051693385,3.2078,2593.3,2593.2,0.7768909]
[1750051694285,3.97888,2593.3,2593.2,0.7768909]
[1750051694593,3.97888,2593.3,2593.2,0.0057809]
[1750051695188,3.97888,2593.3,2593.2,0.7768909]
[1750051695388,0.77107,2593.4,2593.2,0.0057809]
[1750051695589,2.0208209,2593.5,2593.3,0.77106]
[1750051695895,0.77105,2593.4,2593.2,0.0057809]
[1750051696089,0.77108,2593.3,2593.2,0.0057809]
[1750051696586,0.77108,2593.3,2593.2,0.7768809]
[1750051697190,0.0057809,2593.5,2593.4,0.77105]
[1750051700192,0.07315496,2593.5,2593.4,0.77105]
[1750051700496,0.84417496,2593.5,2593.4,0.77105]
[1750051700690,0.07315496,2593.5,2593.4,0.77105]
[1750051700889,0.07315496,2593.5,2593.2,0.0057809]
[1750051701196,1.2553,2593.4,2593.3,0.77105]
[1750051701796,0.77108,2593.3,2593.2,0.0057809]
[1750051702292,0.77115,2593.1,2592.9,3.2078]
[1750051702593,2.02642,2593.2,2593.1,0.77114]
[1750051702892,2.02642,2593.2,2592.5,5.04270785]
[1750051702893,1.2553,2593.2,2592.5,8.25050785]
[1750051703092,1.2553,2593.2,2592.9,3.2078]
[1750051703298,1.2553,2593.2,2593.1,0.77114]
[1750051703499,0.07315496,2593.5,2593.2,0.77111]
[1750051703685,0.7711,2593.3,2592.9,3.2078]
[1750051703996,1.2585,2593.4,2593.3,0.77108]
[1750051704389,1.31160077,2593.4,2593.3,0.77108]
[1750051705310,0.05310077,2593.4,2593.3,5.81378785]
[1750051706504,0.05310077,2593.4,2593.3,0.77108]
[1750051710400,3.2078,2594.4,2594.3,0.77078]
[1750051710706,1.3402,2594.8,2594.3,8.25050785]
[1750051710907,1.3402,2594.8,2594.7,0.77067]
[1750051711604,0.0057809,2595.0,2594.9,0.77061]
[1750051712003,1.4787,2595.5,2594.7,3.2078]
[1750051712211,0.77063,2594.9,2594.5,0.0057809]
[1750051712401,1.2601,2594.8,2594.7,0.77067]
[1750051712601,4.6865,2595.5,2594.7,3.2078]
[1750051712809,1.2601,2595.3,2595.2,0.77052]
[1750051713110,2.03061,2595.3,2595.1,3.2078]
[1750051713302,0.7331809,2595.5,2595.2,3.2078]
[1750051713705,0.7331809,2595.5,2595.3,0.77046]
[1750051713912,1.2658809,2595.5,2595.4,0.77046]
[1750051714112,0.0057809,2595.5,2595.4,0.77046]
[1750051714612,0.0057809,2595.5,2595.3,0.77046]
[1750051715004,0.0057809,2595.5,2595.2,4.4548]
[1750051715005,0.0057809,2595.5,2595.4,0.77046]
[1750051716109,0.0057809,2595.5,2595.3,0.77047]
[1750051716305,0.7705,2595.3,2595.2,3.2078]
[1750051716508,0.06737406,2595.3,2595.2,3.97832]
[1750051717014,0.0057809,2595.5,2595.3,0.77047]
[1750051717206,0.7762109,2595.5,2595.3,0.77047]
[1750051717406,0.7762109,2595.5,2595.2,3.2078]
[1750051717407,0.83786406,2595.3,2595.2,3.2078]
[1750051717707,0.06737406,2595.3,2594.9,3.2078]
[1750051717905,0.06737406,2595.3,2595.2,3.97832]
[1750051718114,0.83786406,2595.3,2595.2,3.97832]
[1750051718309,0.06737406,2595.3,2595.2,8.97832]
[1750051718517,0.0057809,2595.5,2595.4,0.77046]
[1750051718812,0.77035,2595.8,2595.2,21.22823]
[1750051719012,0.77035,2595.8,2595.6,3.2078]
[1750051719213,1.354,2596.1,2595.6,3.2078]
[1750051719414,0.77035,2595.8,2595.7,40.8]
[1750051720322,0.7704,2595.6,2595.5,3.2078]
[1750051720829,0.77037,2595.7,2595.6,0.7704]
[1750051721030,0.7704,2595.6,2595.5,44.0078]
[1750051722228,0.77039,2595.7,2595.5,44.7782]
[1750051722428,0.7704,2595.6,2595.5,44.0078]
[1750051722928,0.7704,2595.6,2595.5,44.77823]
[1750051723322,0.7704,2595.6,2595.5,44.0078]
[1750051724828,0.7704,2595.6,2595.5,40.8]
[1750051725031,0.77049,2595.3,2595.2,3.2078]
[1750051725622,1.3166,2595.5,2595.2,3.2078]
[1750051725822,0.0057809,2596.0,2595.4,5.04270785]
[1750051726032,0.0057809,2596.0,2595.9,3.2078]
[1750051726226,0.0057809,2596.0,2595.9,3.97811]
[1750051726418,0.0057809,2596.0,2595.9,18.38811]
[1750051726620,0.77012,2596.6,2596.4,0.77016]
[1750051726922,2.8513,2596.7,2595.9,59.78]
[1750051726923,1.3166,2596.5,2596.3,3.2078]
[1750051727121,1.3166,2596.5,2595.9,51.5722]
[1750051727323,2.08674,2596.5,2596.2,0.7702]
[1750051727522,2.08674,2596.5,2596.3,3.2078]
[1750051727523,1.3166,2596.5,2596.3,3.2078]
[1750051727727,1.3166,2596.5,2596.4,0.77016]
[1750051728122,0.0057809,2596.6,2596.5,0.77013]
[1750051728426,0.0057809,2596.6,2596.3,3.2078]
[1750051728427,3.2078,2597.2,2596.8,0.77002]
[1750051728630,3.97774,2597.2,2596.9,0.77]
[1750051729029,1.3038,2597.3,2596.8,44.0078]
[1750051729327,0.77018,2596.4,2596.1,3.9838109]
[1750051729528,0.77022,2596.2,2596.1,3.2135809]
[1750051729928,2.07401,2596.3,2596.1,3.2135809]
[1750051730130,0.0057809,2596.5,2596.1,3.2135809]
[1750051730629,0.0057809,2596.5,2596.4,0.77016]
[1750051730826,0.0057809,2596.5,2596.4,3.97796]
[1750051731828,0.0057809,2596.5,2596.4,3.2078]
[1750051732023,0.0057809,2596.5,2596.3,0.77018]
[1750051732334,0.0057809,2596.5,2596.4,3.97796]
[1750051732533,0.7759109,2596.5,2596.4,3.2078]